fUSD/lending_fUSD_20240215
["ID","MTS","AMOUNT","RATE_DAILY","PERIOD"]
[314127102,1708008673091,-998.0,0.0004,40]
[314127103,1708008673101,-8922.025906,0.0004,2]
[314127104,1708008673112,-508.69458722,0.0004,10]
[314127105,1708008673123,-1147.90483687,0.0004,2]
[314127106,1708008673135,-1678.35630843,0.0004,7]
[314127107,1708008673146,-1115.253238,0.0004,2]
[314127108,1708008673157,-12074.90421635,0.0004,30]
[314127109,1708008673473,-500.0,0.00039452,7]
[314127110,1708008673485,-379.15,0.00039726,7]
[314127111,1708008673499,-174.07,0.0004,30]
[314127112,1708008673514,-526.5420326,0.0004,30]
[314127113,1708008673529,-25588.8151999,0.0004,30]
[314127114,1708008673544,-251.9428799,0.0004,30]
[314127115,1708008673559,-1772.64518951,0.0004,30]
[314127116,1708008673584,-150.0,0.00038967,2]
[314127117,1708008673597,-5132.22848816,0.0004,30]
[314127118,1708008673610,-2389.53536194,0.0004,30]
[314127119,1708008673624,-4147.91875613,0.0004,30]
[314127120,1708008673637,-3670.9914,0.0004,30]
[314127121,1708008673650,-75181.05785395,0.0004,30]
[314127122,1708008673673,-150.0,0.00039839,2]
[314127123,1708008673684,-6266.09405783,0.0004,30]
[314127124,1708008673697,-12671.37644967,0.0004,30]
[314127125,1708008673718,-500.0,0.00039726,7]
[314127126,1708008673728,-190.57972946,0.0004,30]
[314127127,1708008677307,142859.01670131,0.00023,2]
[314127128,1708008677372,4278.00782341,0.0002509,2]
[314127129,1708008677549,23251.6497212,0.000264,2]
[314127130,1708008677610,186.7420485,0.000275,2]
[314127131,1708008678179,3974.2821582,0.00022,30]
[314127132,1708008686202,275.55617254,0.0002549,2]
[314127133,1708008690346,80577.00343332,0.000281,2]
[314127134,1708008719476,4196.36864791,0.00026,2]
[314127135,1708008767512,530.42485167,0.0002509,2]
[314127136,1708008775126,7292.90550084,0.000263,2]
[314127137,1708008780682,231193.13733871,0.0002913,2]
[314127138,1708008805031,-105656.38447864,0.0002913,2]
[314127139,1708008832387,394343.61552136,0.00023,2]
[314127140,1708008832410,300000.0,0.00023,2]
[314127141,1708008832440,1026145.34513704,0.00023,2]
[314127142,1708008864956,215.82244978,0.000137,2]
[314127143,1708009029661,-269.06572221,0.000241,2]
[314127144,1708009029684,-326.70134282,0.0002442,2]
[314127145,1708009029713,-238.34381878,0.00025,2]
[314127146,1708009029737,-202.20465831,0.00026,2]
[314127147,1708009029762,-14973.67021895,0.00028,2]
[314127148,1708009029785,-2103.37452,0.00028,2]
[314127149,1708009029811,-2314.84760793,0.00029,15]
[314127150,1708009526518,1120.0,0.00028,2]
[314127170,1708009834610,-399.2023011,0.000301,2]
[314127171,1708009834624,-194.77276722,0.000301,2]
[314127172,1708009834635,-155.07261367,0.00030942,2]
[314127173,1708009834645,-152.11669873,0.00031,30]
[314127175,1708009834655,-56.56100069,0.00031,2]
[314127177,1708009834667,-2603.71306986,0.00031,2]
[314127178,1708009834679,-917.62,0.00031,2]
[314127179,1708009834698,-4079.6652452,0.00031,2]
[314127181,1708009834709,-792.63,0.00031043,2]
[314127182,1708009834720,-204.0,0.0003116,2]
[314127183,1708009834731,-150.99,0.00031625,2]
[314127184,1708009834740,-2448.2900775,0.00032125,2]
[314127185,1708009834750,-204.0,0.00032762,5]
[314127186,1708009834760,-2063.4258,0.000328,2]
[314127187,1708009834770,-441.24,0.000328,2]
[314127188,1708009834780,-250.0,0.00032811,2]
[314127189,1708009834789,-308.88,0.00032811,2]
[314127190,1708009834798,-2165.00016773,0.00032811,2]
[314127191,1708009834811,-1372.68983227,0.00032811,2]
[314127192,1708009834820,-1000.0,0.00032815,2]
[314127193,1708009834830,-250.0,0.00032848,2]
[314127194,1708009834839,-510.04,0.00032864,2]
[314127195,1708009834849,-153.39,0.00032877,2]
[314127196,1708009834859,-200.0,0.00032893,2]
[314127197,1708009834869,-150.0,0.00032895,2]
[314127198,1708009834878,-1601.76712773,0.00032898,2]
[314127199,1708009834890,-2464.18460252,0.00032898,2]
[314127200,1708009834911,-6446.81740078,0.00032898,2]
[314127201,1708009834927,-2997.08030588,0.00032898,2]
[314127202,1708009834939,-764.5537232,0.00032898,2]
[314127203,1708009834951,-846.52282588,0.00032898,2]
[314127204,1708009834977,-1511.39486568,0.00032898,2]
[314127205,1708009834989,-567.0516138,0.00032898,2]
[314127206,1708009835002,-6700.62753453,0.00032898,2]
[314127207,1708009835011,-4094.0,0.000329,2]
[314127208,1708009835021,-1684.37,0.00032914,2]
[314127209,1708009835032,-195.34,0.00032973,2]
[314127210,1708009835042,-2000.0,0.00032994,2]
[314127211,1708009835051,-6041.61748374,0.00033,2]
[314127212,1708009835061,-167.0,0.00033,2]
[314127213,1708009835070,-157.0,0.00033,2]
[314127214,1708009835079,-250.0,0.00033034,2]
[314127215,1708009835088,-233.17,0.00033101,2]
[314127216,1708009835098,-200.0,0.00033219,120]
[314127217,1708009835108,-174.43,0.00033223,2]
[314127218,1708009835117,-792.63,0.00033306,2]
[314127219,1708009835127,-1479.54,0.00033327,2]
[314127220,1708009835137,-282.63,0.00033367,2]
[314127221,1708009835147,-395.9846366,0.000335,2]
[314127222,1708009835157,-282.63,0.00033542,2]
[314127223,1708009835167,-152.0,0.00033675,3]
[314127224,1708009835176,-282.63,0.00033718,2]
[314127225,1708009835186,-282.63,0.00033894,2]
[314127226,1708009835195,-6573.48220331,0.00034,20]
[314127227,1708009835206,-282.63,0.00034069,2]
[314127229,1708009835216,-21086.6574965,0.0003414,10]
[314127231,1708009835227,-1147.81107897,0.00034151,10]
[314127233,1708009835236,-9852.90414134,0.00034162,10]
[314127235,1708009835245,-7831.97261615,0.00034184,10]
[314127237,1708009835255,-4094.76563956,0.000342,2]
[314127239,1708009835265,-282.63,0.00034245,2]
[314127241,1708009835274,-204.0,0.00034365,8]
[314127243,1708009835284,-282.63,0.00034421,2]
[314127245,1708009835293,-722.244442,0.000345,2]
[314127246,1708009835303,-510.04,0.00034508,2]
[314127248,1708009835313,-16519.381272,0.0003452,2]
[314127250,1708009835323,-1967.0,0.00034521,2]
[314127252,1708009835332,-167.0,0.00034521,2]
[314127254,1708009835342,-157.0,0.00034521,2]
[314127256,1708009835352,-200.89139386,0.00034563,2]
[314127258,1708009835362,-282.63,0.00034596,2]
[314127260,1708009835371,-282.63,0.00034772,2]
[314127262,1708009835381,-14652.25571857,0.0003479,2]
[314127264,1708009835392,-24779.071909,0.00034794,2]
[314127266,1708009835402,-1083.366663,0.000348,2]
[314127268,1708009835412,-18973.77577087,0.00034931,2]
[314127272,1708009835622,-14064.98677413,0.00034931,2]
[314127273,1708009835632,-282.63,0.00034947,2]
[314127274,1708009835642,-1444.488884,0.00035,2]
[314127275,1708009835651,-155.0,0.00035,2]
[314127276,1708009835661,-152.96275076,0.00035,20]
[314127277,1708009835671,-41298.453182,0.00035068,2]
[314127278,1708009835682,-17668.98787552,0.0003509,2]
[314127279,1708009835692,-282.63,0.00035123,2]
[314127280,1708009835702,-282.63,0.00035299,2]
[314127281,1708009835713,-57817.834454,0.00035342,2]
[314127282,1708009835723,-17322.0,0.000354,3]
[314127283,1708009835733,-2580.0,0.000354,3]
[314127284,1708009835743,-282.63,0.00035474,2]
[314127285,1708009835753,-14652.25571852,0.00035475,2]
[314127286,1708009835763,-792.63,0.0003557,2]
[314127287,1708009835774,-1805.611105,0.000356,2]
[314127288,1708009835784,-282.63,0.0003565,2]
[314127289,1708009835795,-177.34,0.0003568,2]
[314127290,1708009835805,-248.62646184,0.000357,2]
[314127291,1708009835814,-288.57263073,0.0003579,7]
[314127292,1708009835824,-1967.0,0.00035798,2]
[314127293,1708009835835,-282.63,0.00035826,2]
[314127294,1708009835845,-7179.72820531,0.0003589,8]
[314127295,1708009835854,-3357.06196261,0.0003589,2]
[314127296,1708009835865,-1000.0,0.0003589,120]
[314127297,1708009835874,-152.76359541,0.000359,2]
[314127298,1708009835884,-190.74165075,0.000359,8]
[314127299,1708009835894,-207.4519588,0.000359,2]
[314127300,1708009835903,-686.88759035,0.000359,2]
[314127301,1708009835913,-2232.54368472,0.000359,2]
[314127302,1708009835923,-1387.88777522,0.000359,2]
[314127303,1708009835932,-1589.51943927,0.000359,2]
[314127304,1708009835941,-459.19030742,0.0003591,5]
[314127305,1708009835951,-7179.72820531,0.0003592,8]
[314127306,1708009835961,-2722.78290707,0.00035925,4]
[314127307,1708009835974,-296.17021344,0.00035925,4]
[314127308,1708009835985,-7179.72820531,0.0003593,8]
[314127309,1708009835995,-16934.63057956,0.0003594,5]
[314127310,1708009836005,-760.46540309,0.0003594,4]
[314127311,1708009836014,-208.76956693,0.00035955,4]
[314127312,1708009836024,-203.01553784,0.00035955,4]
[314127313,1708009836034,-204.0,0.00035967,11]
[314127314,1708009836044,-114875.651285,0.0003598,8]
[314127315,1708009836053,-218.63280078,0.0003598,2]
[314127316,1708009836062,-7179.72820531,0.00035987,8]
[314127317,1708009836074,-82160.01833094,0.0003599,8]
[314127318,1708009836087,-759.8606458,0.0003599,8]
[314127319,1708009836298,-576.32490571,0.0003599,8]
[314127320,1708009836315,-4566.07266901,0.0003599,8]
[314127321,1708009836329,-1721.9738624,0.0003599,8]
[314127322,1708009836342,-1298.31797469,0.0003599,8]
[314127323,1708009836355,-658.25,0.0003599,8]
[314127324,1708009836367,-3208.00515943,0.0003599,8]
[314127325,1708009836379,-250.0,0.0003599,8]
[314127326,1708009837940,-177.34,0.00035,2]
[314127327,1708009837949,-422.66,0.0003599,8]
[314127328,1708009837961,-10600.2177169,0.0003599,8]
[314127329,1708009838120,-8653.95002012,0.0003599,8]
[314127330,1708009838130,-218.63280078,0.0003599,2]
[314127331,1708009838140,-665.82494773,0.00035997,2]
[314127332,1708009838149,-387.1283615,0.00035999,15]
[314127333,1708009838158,-500.0,0.00035999,15]
[314127334,1708009838168,-500.0,0.00035999,15]
[314127335,1708009838177,-242.41906087,0.00035999,15]
[314127336,1708009838186,-651181.77960822,0.00036,5]
[314127337,1708009838198,-138303.3819962,0.00036,5]
[314127338,1708009838210,-908.44997341,0.00036,5]
[314127339,1708009838223,-1187.63234799,0.00036,5]
[314127340,1708009838234,-2090.4884,0.00036,5]
[314127387,1708009841260,-2113.75885849,0.00034195,10]
[314127388,1708009841269,-177.34,0.00035548,2]
[314127389,1708009841279,-71825.34777332,0.00036,5]
[314127390,1708009841290,-589.55763454,0.00036,5]
[314127391,1708009841327,-1978.90521346,0.00036,5]
[314127392,1708009841340,-1578.48,0.00036,5]
[314127393,1708009841351,-1138.0,0.00036,5]
[314127394,1708009841363,-3454.35438775,0.00036,5]
[314127395,1708009841535,-19658.98486046,0.00036,5]
[314127396,1708009841547,-2501.75482878,0.00036,5]
[314127405,1708009844943,-600.66605365,0.00036,5]
[314127406,1708009844956,-833.79910387,0.00036,5]
[314127407,1708009845087,-11585.82745357,0.00036,5]
[314127408,1708009845100,-14320.29511712,0.00036,5]
[314127409,1708009845220,-575.379805,0.00036,5]
[314127410,1708009845718,-15039.91694194,0.00036,5]
[314127411,1708009845734,-2938.3542014,0.00036,5]
[314127412,1708009845747,-59614.04792508,0.00036,5]
[314127418,1708009845983,-1564.89956,0.00036,5]
[314127419,1708009846044,-2521.33154629,0.00036,5]
[314127420,1708009846057,-2683.01266004,0.00036,5]
[314127421,1708009846110,-534.0,0.00036,5]
[314127422,1708009846122,-2634.95,0.00036,5]
[314127423,1708009846134,-261.84,0.00036,5]
[314127424,1708009846186,-162.57,0.00035839,2]
[314127425,1708009846195,-3578.6919811,0.00036,5]
[314127426,1708009846207,-46337.59171441,0.00036,5]
[314127427,1708009846217,-179.51834772,0.00036,2]
[314127428,1708009846228,-6058.39255183,0.00036,10]
[314127429,1708009846238,-66987.56344796,0.00036,30]
[314127430,1708009846248,-6195.41007077,0.00036,2]
[314127431,1708009846257,-561325.47318672,0.00036,2]
[314127432,1708009846267,-2527.855547,0.00036,2]
[314127433,1708009846277,-4927.0,0.00036,4]
[314127434,1708009846286,-66077.525091,0.00036,2]
[314127435,1708009846296,-6546.2325615,0.00036,2]
[314127436,1708009846305,-157.0,0.00036,2]
[314127437,1708009846315,-282.63,0.00036001,2]
[314127438,1708009846324,-177.34,0.00036096,2]
[314127439,1708009846334,-152.72,0.00036118,2]
[314127440,1708009846344,-510.04,0.00036152,2]
[314127441,1708009846354,-282.63,0.00036177,2]
[314127442,1708009846364,-658.3,0.00036191,2]
[314127443,1708009846374,-1106.83057247,0.000362,2]
[314127444,1708009846383,-180.0,0.00036206,2]
[314127445,1708009846393,-327.0,0.0003623,2]
[314127446,1708009846402,-14652.25571852,0.00036251,2]
[314127447,1708009846415,-152.76359537,0.00036252,2]
[314127448,1708009846424,-282.63,0.00036352,2]
[314127449,1708009846434,-157.05791938,0.0003637,2]
[314127450,1708009846444,-152.0,0.0003651,4]
[314127451,1708009846453,-282.63,0.00036528,2]
[314127452,1708009846463,-288.57263066,0.00036534,8]
[314127453,1708009846473,-838.4456689,0.000366,2]
[314127454,1708009846484,-152.76359537,0.00036604,2]
[314127455,1708009846494,-177.34,0.00036644,2]
[314127456,1708009846504,-31057.86132398,0.0003668,30]
[314127457,1708009846515,-100000.0,0.000367,2]
[314127458,1708009846525,-282.63,0.00036704,2]
[314127459,1708009846535,-3879.99726775,0.000368,2]
[314127460,1708009846548,-279.44002297,0.000368,2]
[314127462,1708009846563,-296.9414077,0.000368,2]
[314127464,1708009846578,-8383.44103302,0.000368,2]
[314127466,1708009846596,-748.3470722,0.000368,2]
[314127467,1708009846609,-491.62526748,0.000368,2]
[314127468,1708009846621,-512.2726247,0.000368,2]
[314127469,1708009846635,-8707.63820082,0.000368,2]
[314127470,1708009846649,-8559.9024425,0.000368,2]
[314127471,1708009846725,-29815.06090842,0.000368,2]
[314127472,1708009846738,-1000.0,0.00036917,2]
[314127473,1708009846749,-152.76359537,0.00036956,2]
[314127474,1708009846759,-2586.22771,0.00036986,2]
[314127475,1708009846769,-150.0,0.00036986,2]
[314127476,1708009846780,-150.0,0.00036986,7]
[314127477,1708009846789,-800.0924007,0.00037,3]
[314127478,1708009846800,-2510.0,0.00037,2]
[314127479,1708009846810,-2824.92855209,0.00037,7]
[314127480,1708009846824,-4608.67713029,0.00037,7]
[314127481,1708009846836,-437.63514907,0.00037,7]
[314127482,1708009846849,-10875.54621665,0.00037,7]
[314127483,1708009846860,-2700.0,0.00037,38]
[314127484,1708009846870,-2760.0,0.00037,2]
[314127485,1708009846880,-752.0,0.00037,2]
[314127486,1708009846891,-1918.2078145,0.00037,9]
[314127487,1708009846901,-14652.25571852,0.00037026,2]
[314127488,1708009846911,-1967.0,0.00037075,2]
[314127489,1708009846922,-152.72,0.00037128,2]
[314127490,1708009846933,-150.0,0.0003718,2]
[314127491,1708009846944,-177.34,0.00037192,2]
[314127492,1708009846955,-288.57263066,0.00037277,8]
[314127493,1708009846965,-258.0,0.000373,10]
[314127494,1708009846976,-152.76359537,0.00037308,2]
[314127495,1708009846989,-11577.30350474,0.000374,5]
[314127496,1708009847002,-1247.199999,0.000374,5]
[314127497,1708009847014,-5744.25474947,0.000374,5]
[314127498,1708009847024,-3357.06196244,0.00037469,2]
[314127499,1708009847035,-658.3,0.0003747,2]
[314127500,1708009847045,-670.53530605,0.000375,5]
[314127501,1708009847055,-165.0,0.000375,2]
[314127502,1708009847064,-165.0,0.000375,2]
[314127503,1708009847073,-204.0,0.00037569,14]
[314127504,1708009847083,-150.0,0.00037576,2]
[314127505,1708009847093,-152.76359537,0.0003766,2]
[314127506,1708009847102,-150.0,0.00037702,2]
[314127507,1708009847346,-666.0,0.0003771,2]
[314127508,1708009847356,-181.88827529,0.0003774,2]
[314127509,1708009847366,-510.04,0.00037796,2]
[314127510,1708009847375,-340.40611138,0.00037799,2]
[314127511,1708009847388,-659.59388862,0.00037799,2]
[314127512,1708009847398,-1000.0,0.000378,2]
[314127513,1708009847407,-153.87,0.000378,3]
[314127514,1708009847417,-153.87,0.000378,3]
[314127515,1708009847427,-153.87,0.000378,3]
[314127516,1708009847437,-1313.06715958,0.000378,3]
[314127517,1708009847450,-2799.34284042,0.000378,3]
[314127518,1708009847460,-4112.41,0.000378,3]
[314127519,1708009847471,-4112.41,0.000378,3]
[314127520,1708009847483,-4112.41,0.000378,3]
[314127521,1708009847492,-4112.41,0.000378,3]
[314127522,1708009847501,-2040.69908852,0.000378,3]
[314127523,1708009847513,-2071.71091148,0.000378,3]
[314127524,1708009847522,-4112.41,0.000378,3]
[314127525,1708009847531,-3484.91182519,0.000378,3]
[314127526,1708009847558,-627.49817481,0.000378,3]
[314127527,1708009847568,-4112.41,0.000378,3]
[314127528,1708009847578,-2724.11807577,0.000378,3]
[314127529,1708009847591,-1388.29192423,0.000378,3]
[314127530,1708009847602,-1611.70807576,0.000378,3]
[314127531,1708009847623,-378.41523539,0.000378,3]
[314127532,1708009847640,-467.43016111,0.000378,3]
[314127533,1708009847653,-1654.85652774,0.000378,3]
[314127534,1708009847663,-4112.41,0.000378,3]
[314127535,1708009847674,-4112.41,0.000378,3]
[314127536,1708009847684,-4112.41,0.000378,3]
[314127537,1708009847694,-4112.41,0.000378,3]
[314127538,1708009847704,-4112.41,0.000378,3]
[314127539,1708009847714,-4112.41,0.000378,3]
[314127540,1708009847725,-4112.41,0.000378,3]
[314127541,1708009847738,-4112.41,0.000378,3]
[314127542,1708009847749,-4112.41,0.000378,3]
[314127543,1708009847759,-9119.76601226,0.00037802,2]
[314127544,1708009847772,-5532.48970626,0.00037802,2]
[314127545,1708009847782,-3879.341565,0.00037808,2]
[314127546,1708009847792,-792.63,0.00037834,2]
[314127547,1708009847802,-150.0,0.00037842,2]
[314127548,1708009847811,-3235.00137221,0.00037872,2]
[314127549,1708009847822,-218.63280078,0.0003789,2]
[314127550,1708009847831,-1331.64989546,0.00037897,2]
[314127551,1708009847841,-300.0,0.00037899,2]
[314127552,1708009847851,-300.0,0.00037899,2]
[314127553,1708009847860,-300.0,0.00037899,2]
[314127554,1708009847870,-300.0,0.00037899,2]
[314127555,1708009847880,-300.0,0.00037899,2]
[314127556,1708009847889,-300.0,0.00037899,2]
[314127557,1708009847899,-300.0,0.00037899,2]
[314127558,1708009847909,-300.0,0.00037899,2]
[314127559,1708009847921,-300.0,0.00037899,2]
[314127560,1708009847931,-300.0,0.00037899,2]
[314127561,1708009847941,-300.0,0.00037899,2]
[314127562,1708009847950,-310.60182551,0.000379,2]
[314127563,1708009847960,-150.1,0.000379,3]
[314127564,1708009847970,-667707.21696,0.000379,2]
[314127565,1708009847982,-2083.797245,0.000379,28]
[314127566,1708009847991,-385.29687602,0.00037927,10]
[314127567,1708009848000,-150.0,0.00037963,2]
[314127568,1708009848009,-300.0,0.00037969,2]
[314127569,1708009848019,-150.0,0.00037988,2]
[314127570,1708009848028,-300.0,0.00037999,2]
[314127571,1708009848039,-851.27585593,0.00038,2]
[314127572,1708009848048,-152.76359537,0.00038012,2]
[314127573,1708009848058,-288.57263066,0.00038021,8]
[314127574,1708009848068,-1512.31648036,0.000381,2]
[314127575,1708009848077,-250.0,0.000381,2]
[314127576,1708009848087,-200.0,0.000381,2]
[314127577,1708009848096,-1000.0,0.000381,2]
[314127578,1708009848106,-500.0,0.000381,2]
[314127579,1708009848115,-1622.0,0.000381,2]
[314127580,1708009848125,-500.0,0.0003813,7]
[314127581,1708009848135,-152.72,0.00038139,2]
[314127582,1708009848144,-200.0,0.00038216,3]
[314127583,1708009848154,-150.0,0.00038274,2]
[314127584,1708009848164,-166.12,0.00038288,2]
[314127585,1708009848173,-200.0,0.000383,12]
[314127586,1708009848182,-1967.0,0.00038352,2]
[314127587,1708009848195,-150.0,0.00038356,15]
[314127588,1708009848204,-150.0,0.00038356,15]
[314127589,1708009848214,-150.0,0.00038356,15]
[314127590,1708009848224,-150.0,0.00038356,15]
[314127591,1708009848235,-150.0,0.00038356,15]
[314127592,1708009848245,-150.0,0.00038356,15]
[314127593,1708009848254,-150.0,0.00038356,15]
[314127594,1708009848265,-150.0,0.00038356,15]
[314127595,1708009848275,-150.0,0.00038356,15]
[314127596,1708009848284,-150.0,0.00038356,15]
[314127597,1708009848294,-150.0,0.00038356,15]
[314127598,1708009848304,-150.0,0.00038356,15]
[314127599,1708009848313,-150.0,0.00038356,15]
[314127600,1708009848323,-150.0,0.00038356,15]
[314127601,1708009848332,-150.0,0.00038356,15]
[314127602,1708009848342,-150.0,0.00038356,15]
[314127603,1708009848351,-150.0,0.00038356,15]
[314127604,1708009848361,-150.0,0.00038356,15]
[314127605,1708009848370,-150.0,0.00038356,15]
[314127606,1708009848380,-170.66271998,0.00038356,15]
[314127607,1708009848390,-5172.45542,0.00038356,2]
[314127608,1708009848399,-3689.62,0.00038356,15]
[314127609,1708009848409,-156.23,0.00038356,2]
[314127610,1708009848418,-152.76359537,0.00038364,2]
[314127611,1708009848432,-375.0,0.000384,7]
[314127612,1708009848442,-250.0,0.000384,2]
[314127613,1708009848451,-1500.0,0.000384,28]
[314127614,1708009848460,-1589.51943926,0.00038454,2]
[314127615,1708009848469,-1387.8877752,0.0003849,2]
[314127616,1708009848479,-151.637283,0.000385,2]
[314127617,1708009848491,-2232.5436847,0.00038504,2]
[314127618,1708009848500,-150.0,0.0003853,2]
[314127619,1708009848509,-150.0,0.00038533,2]
[314127620,1708009848519,-150.0,0.00038569,2]
[314127621,1708009848528,-5622.0,0.00038569,2]
[314127622,1708009848539,-42526.0,0.00038569,2]
[314127623,1708009848548,-19841.0,0.00038569,2]
[314127624,1708009848559,-8162.0,0.00038569,2]
[314127625,1708009848568,-7415.0,0.00038569,2]
[314127626,1708009848577,-2289.0,0.00038569,2]
[314127627,1708009848587,-2926.0,0.00038569,2]
[314127628,1708009848596,-4059.0,0.00038569,2]
[314127629,1708009848606,-1037.0,0.00038569,2]
[314127630,1708009848615,-150.0,0.00038569,2]
[314127631,1708009848625,-300.0,0.00038574,2]
[314127632,1708009848636,-14652.25571852,0.00038577,2]
[314127633,1708009848649,-150.0,0.00038599,2]
[314127634,1708009848658,-150.0,0.00038623,2]
[314127635,1708009848668,-3235.00137221,0.00038632,2]
[314127636,1708009848677,-800.0,0.00038634,15]
[314127637,1708009848687,-200.0,0.00038634,20]
[314127638,1708009848697,-500.0,0.00038634,20]
[314127639,1708009848707,-327.0,0.0003864,2]
[314127640,1708009848717,-150.0,0.00038649,2]
[314127641,1708009848727,-150.0,0.00038673,2]
[314127642,1708009848741,-300.0,0.00038683,2]
[314127643,1708009848752,-150.0,0.00038708,2]
[314127644,1708009848762,-167.648658,0.00038711,2]
[314127645,1708009848773,-1605.30624,0.00038711,2]
[314127646,1708009848782,-984.800052,0.00038711,2]
[314127647,1708009848792,-152.76359537,0.00038716,2]
[314127648,1708009848803,-150.0,0.00038741,2]
[314127649,1708009848813,-658.3,0.0003875,2]
[314127650,1708009848822,-150.0,0.0003876,2]
[314127651,1708009848831,-149.49734363,0.00038764,9]
[314127652,1708010108617,500.0,0.000274,7]
[314127653,1708010404379,350.0,0.00025,3]
[314127654,1708010405517,400.0,0.00027,3]
[314127655,1708010406755,450.0,0.00029,3]
[314127656,1708010480645,152.0,0.00029496,2]
[314127657,1708010480913,152.0,0.00028811,2]
[314127658,1708010524207,205.0,0.0002916,2]
[314127680,1708011032096,-205.0,0.00030363,2]
[314127681,1708011032105,-152.0,0.00030781,2]
[314127682,1708011032116,-290.80435642,0.00031,3]
[314127683,1708011032128,-209.19564358,0.00031,3]
[314127684,1708011032137,-99.85798472,0.00031466,2]
[314127685,1708011032149,-52.14201528,0.00031466,2]
[314127686,1708011032159,-152.0,0.00032151,2]
[314127687,1708011032168,-205.0,0.00032643,6]
[314127688,1708011032178,-400.0,0.0003271,3]
[314127689,1708011032187,-150.0,0.0003271,3]
[314127690,1708011032196,-7175.1788,0.00032711,2]
[314127691,1708011032208,-943.34,0.00032809,2]
[314127692,1708011032217,-688.36,0.00032809,2]
[314127693,1708011032226,-152.0,0.00032836,2]
[314127694,1708011032236,-550.0,0.00033,3]
[314127695,1708011032246,-152.0,0.00033521,2]
[314127696,1708011032255,-152.0,0.00034205,2]
[314127697,1708011032265,-9605.63886179,0.00034217,10]
[314127698,1708011032275,-5048.78798172,0.00034228,10]
[314127699,1708011032284,-252.43939909,0.00034228,10]
[314127700,1708011032294,-2913.36981716,0.00034228,10]
[314127701,1708011032303,-23900.0,0.00034277,2]
[314127702,1708011032312,-170.01,0.00034288,2]
[314127703,1708011032322,-2000.0,0.00034351,2]
[314127704,1708011032331,-233.17,0.00034357,2]
[314127705,1708011032341,-1403.64,0.0003441,2]
[314127706,1708011032350,-481.92,0.00034463,2]
[314127707,1708011032359,-200.0,0.00034594,2]
[314127708,1708011032368,-250.0,0.00034655,2]
[314127709,1708011032377,-1373.77,0.00034738,2]
[314127710,1708011032386,-152.0,0.0003489,2]
[314127711,1708011032395,-205.0,0.00034923,10]
[314127712,1708011032404,-600.0,0.00035,3]
[314127713,1708011032414,-1298.10763315,0.00035,2]
[314127714,1708011032423,-688.36,0.00035073,2]
[314127715,1708011032432,-250.0,0.00035079,2]
[314127716,1708011032441,-560.0,0.00035155,3]
[314127717,1708011032450,-1507.18,0.00035255,2]
[314127718,1708011032462,-250.0,0.00035273,111]
[314127719,1708011032471,-600.0,0.00035327,2]
[314127720,1708011032480,-150.0,0.00035361,2]
[314127722,1708011032490,-2451.0,0.000354,3]
[314127724,1708011032499,-1559.0,0.000355,3]
[314127725,1708011032509,-152.0,0.00035575,2]
[314127726,1708011032522,-1000.0,0.0003589,120]
[314127727,1708011032543,-170.01,0.00035932,2]
[314127728,1708011032564,-1000.0,0.00035984,10]
[314127729,1708011032586,-7979.27750123,0.00035984,4]
[314127730,1708011032598,-300.0,0.00035999,2]
[314127731,1708011032610,-300.0,0.00035999,2]